bitfinex-derivatives/quotes_ETHF0:USTF0_20230403
["timestamp","ask_amount","ask_price","bid_price","bid_amount"]
[1680547405069,0.02010589,1829.0,1828.0,4.372]
[1680547405464,9.904,1828.9,1827.9,4.372]
[1680547406566,9.904,1828.9,1828.0,0.61086163]
[1680547407565,9.904,1828.7,1828.0,0.61086163]
[1680547407764,9.904,1828.7,1828.3,3.2078]
[1680547407968,5.532,1828.4,1828.3,3.2078]
[1680547408170,5.532,1828.4,1828.0,0.61086163]
[1680547408367,9.904,1828.3,1828.0,3.2078]
[1680547408671,9.904,1828.3,1827.8,3.2078]
[1680547408970,9.904,1828.3,1827.9,0.32288453]
[1680547411863,4.372,1828.6,1827.9,0.32288453]
[1680547412070,4.372,1828.6,1828.0,3.2078]
[1680547412471,4.372,1828.6,1828.2,3.2078]
[1680547412859,13.1118,1828.9,1828.2,3.2078]
[1680547414467,13.1118,1828.9,1828.4,3.2078]
[1680547414671,13.1118,1828.9,1828.2,3.2078]
[1680547417573,13.1118,1828.9,1828.4,3.2078]
[1680547417773,13.1118,1828.9,1828.2,3.2078]
[1680547417967,13.1118,1828.9,1828.4,3.2078]
[1680547418161,13.1118,1828.9,1828.5,0.61148305]
[1680547418575,3.2078,1828.7,1828.5,0.61148305]
[1680547418764,3.2078,1828.7,1828.2,3.2078]
[1680547420578,4.372,1828.6,1828.2,3.2078]
[1680547420876,8.7398,1828.5,1827.8,3.2078]
[1680547421272,8.7398,1828.5,1827.9,0.50707453]
[1680547422675,4.372,1828.6,1828.0,3.2078]
[1680547422864,9.904,1828.6,1828.0,3.2078]
[1680547423274,4.372,1828.6,1828.0,3.2078]
[1680547423467,7.5798,1828.6,1827.9,0.50707453]
[1680547423675,13.1118,1828.6,1828.1,3.2078]
[1680547424269,9.27354963,1828.6,1828.1,3.2078]
[1680547424790,23.828,1828.9,1828.1,3.2078]
[1680547424976,23.828,1828.9,1828.3,3.2078]
[1680547425179,9.904,1828.9,1828.3,3.2078]
[1680547426187,15.18536244,1829.1,1828.3,3.2078]
[1680547426480,4.7462,1829.1,1828.5,3.2078]
[1680547426872,4.7462,1829.1,1828.7,3.2078]
[1680547427072,6.07799385,1829.2,1828.5,3.2078]
[1680547427273,5.532,1829.0,1828.4,3.2078]
[1680547427674,8.7398,1829.0,1828.4,3.2078]
[1680547428074,5.532,1828.8,1828.2,3.2078]
[1680547428280,5.532,1828.8,1828.4,3.2078]
[1680547428983,8.7398,1828.8,1828.4,3.2078]
[1680547429477,8.7398,1828.8,1828.2,3.2078]
[1680547429672,9.875,1828.7,1828.2,3.2078]
[1680547429877,3.2078,1828.6,1828.2,3.2078]
[1680547430075,12.03802408,1828.6,1828.0,3.2078]
[1680547430677,3.2078,1828.4,1828.0,3.2078]
[1680547431378,5.532,1828.3,1828.0,3.2078]
[1680547431675,3.2078,1828.4,1828.0,3.2078]
[1680547431884,0.55361602,1828.8,1828.0,3.2078]
[1680547431885,9.875,1828.7,1828.0,3.2078]
[1680547432175,13.0828,1828.7,1828.0,3.2078]
[1680547433377,13.0828,1828.7,1828.1,0.56015781]
[1680547435077,3.2078,1828.5,1828.1,0.56015781]
[1680547436979,5.532,1828.6,1828.1,0.56015781]
[1680547437283,8.7398,1828.6,1828.1,0.56015781]
[1680547437879,3.2078,1828.6,1828.1,0.56015781]
[1680547438082,13.924,1829.0,1828.3,4.355]
[1680547438281,3.2078,1829.1,1828.5,3.2078]
[1680547438883,7.5798,1829.1,1828.3,3.2078]
[1680547439082,5.532,1829.0,1828.5,3.2078]
[1680547439279,9.904,1828.9,1828.3,3.2078]
[1680547439481,7.5798,1828.9,1828.5,3.2078]
[1680547439887,3.2078,1828.9,1828.5,3.2078]
[1680547440789,5.532,1829.1,1828.5,3.2078]
[1680547440989,5.532,1829.1,1828.7,3.2078]
[1680547441382,5.532,1829.2,1828.7,3.2078]
[1680547441580,5.532,1829.2,1828.6,3.2078]
[1680547441886,8.7398,1829.1,1828.6,3.2078]
[1680547442097,10.9068,1829.1,1828.6,5.3818]
[1680547443189,7.699,1829.1,1828.6,5.3818]
[1680547443582,2.167,1829.1,1828.8,3.2078]
[1680547444088,2.167,1829.1,1828.6,5.3818]
[1680547444794,2.167,1829.1,1828.8,3.2078]
[1680547446196,2.72710023,1829.2,1828.8,3.2078]
[1680547446396,0.98452787,1829.1,1828.8,3.2078]
[1680547447304,2.171,1829.2,1828.8,3.2078]
[1680547447993,0.98449449,1829.1,1828.8,3.2078]
[1680547448187,0.98449449,1829.1,1828.9,0.74363349]
[1680547448596,0.98449449,1829.1,1828.8,3.2078]
[1680547450303,0.98449449,1829.1,1828.7,2.187]
[1680547450304,2.182,1828.8,1828.2,0.56406289]
[1680547450600,2.182,1828.8,1827.6,4.64084541]
[1680547450601,10.9268,1828.3,1827.6,4.64084541]
[1680547450799,2.178,1827.7,1827.5,0.56406289]
[1680547451006,2.178,1827.7,1827.4,3.27186289]
[1680547451205,7.71,1827.7,1827.4,3.2078]
[1680547451403,2.167,1827.5,1827.2,3.2078]
[1680547452104,7.5848,1827.6,1827.2,3.2078]
[1680547452301,7.5848,1827.6,1827.0,3.2078]
[1680547452607,7.5848,1827.4,1826.8,3.2078]
[1680547452797,3.2078,1827.2,1826.8,3.2078]
[1680547453205,7.5848,1827.2,1826.7,0.15087914]
[1680547453407,5.532,1827.4,1826.7,0.15087914]
[1680547453408,3.2078,1827.0,1826.7,0.15087914]
[1680547453899,4.377,1826.9,1826.7,0.15087914]
[1680547454106,9.909,1826.8,1826.7,0.15087914]
[1680547454305,13.1168,1826.8,1826.7,0.15087914]
[1680547455208,7.5848,1826.8,1826.7,0.15087914]
[1680547455804,3.2078,1826.8,1826.7,0.15087914]
[1680547456007,5.0,1827.1,1826.7,0.15087914]
[1680547456008,3.2078,1827.1,1826.7,0.15087914]
[1680547456314,9.9958471,1827.5,1826.7,0.15087914]
[1680547456515,8.9958471,1827.5,1826.7,0.15087914]
[1680547456713,8.9958471,1827.5,1826.8,3.2078]
[1680547456904,3.4638471,1827.5,1826.8,5.0]
[1680547457111,3.4638471,1827.5,1826.9,3.2078]
[1680547457312,3.2078,1827.3,1826.7,0.15087914]
[1680547457510,3.2078,1827.3,1826.7,3.35867914]
[1680547458112,0.55293179,1827.6,1827.2,4.361]
[1680547458310,3.2078,1829.0,1827.8,5.0]
[1680547458616,9.3495,1829.2,1828.4,8.2078]
[1680547458822,1.0,1828.9,1828.8,3.2078]
[1680547459021,3.2078,1829.5,1828.8,3.2078]
[1680547459316,3.2078,1829.5,1828.3,7.0]
[1680547459317,3.2078,1829.5,1829.0,3.2078]
[1680547459511,3.2078,1829.5,1828.8,3.2078]
[1680547459711,3.2078,1829.3,1828.8,3.2078]
[1680547459909,3.2078,1829.5,1828.8,3.2078]
[1680547460109,3.2078,1829.3,1828.8,3.2078]
[1680547460305,7.5848,1829.3,1828.8,3.2078]
[1680547461316,5.532,1829.2,1828.8,3.2078]
[1680547461610,7.5848,1829.3,1828.8,3.2078]
[1680547461816,4.377,1829.3,1828.8,3.2078]
[1680547462025,4.377,1829.3,1828.6,3.2078]
[1680547462218,5.532,1829.2,1828.6,3.2078]
[1680547462417,4.377,1828.7,1828.2,3.2078]
[1680547462615,9.909,1828.5,1828.2,3.2078]
[1680547462822,13.1168,1828.5,1828.0,3.2078]
[1680547463212,3.2078,1828.3,1828.1,0.36105993]
[1680547463516,13.1168,1828.5,1828.1,0.36105993]
[1680547463720,13.1168,1828.5,1827.8,3.2078]
[1680547463922,7.5848,1828.3,1827.8,3.2078]
[1680547464220,7.5698,1828.1,1827.8,3.2078]
[1680547464517,7.5698,1828.1,1827.3,5.54969116]
[1680547464518,7.5698,1828.1,1827.4,3.2078]
[1680547464718,7.5698,1828.1,1827.3,5.0]
[1680547464719,7.5848,1828.1,1827.6,3.2078]
[1680547465123,9.84946618,1828.5,1827.8,3.2078]
[1680547465325,9.2949,1828.5,1827.8,3.2078]
[1680547465819,9.2949,1828.5,1827.9,0.28348405]
[1680547466019,18.0347,1828.5,1827.9,0.28348405]
[1680547466819,4.377,1828.2,1827.9,0.28348405]
[1680547467025,4.377,1828.2,1827.6,3.2078]
[1680547467827,4.377,1828.2,1827.8,3.2078]
[1680547468117,4.377,1828.0,1827.8,3.2078]
[1680547470925,14.8269,1828.5,1827.8,3.2078]
[1680547472221,9.7398,1828.4,1827.8,3.2078]
[1680547472825,8.7398,1828.4,1827.8,3.2078]
[1680547473025,6.532,1828.3,1827.8,3.2078]
[1680547473236,5.532,1828.3,1827.8,3.2078]
[1680547473526,4.377,1828.2,1827.8,3.2078]
[1680547474220,9.909,1828.4,1827.4,4.377]
[1680547474419,9.909,1828.4,1827.7,3.2078]
[1680547474826,9.909,1828.4,1827.9,3.2078]
[1680547475230,5.532,1828.2,1827.7,3.2078]
[1680547475626,9.909,1828.3,1827.7,3.2078]
[1680547475926,4.375,1828.1,1827.7,3.2078]
[1680547476624,4.375,1828.1,1827.9,3.2078]
[1680547476832,4.377,1828.3,1827.9,3.2078]
[1680547477126,9.2929,1828.5,1828.1,3.2078]
[1680547477430,4.375,1828.5,1828.1,3.2078]
[1680547477629,3.7445797,1828.6,1828.1,3.2078]
[1680547477832,4.377,1828.7,1828.1,3.2078]
[1680547478028,4.377,1828.7,1828.5,3.2078]
[1680547478230,4.377,1828.7,1828.6,0.67615351]
[1680547480132,4.377,1828.9,1828.5,3.2078]
[1680547480328,4.377,1828.9,1828.7,3.2078]
[1680547480825,14.913,1829.1,1828.7,3.2078]
[1680547481032,9.894,1829.1,1828.9,3.2078]
[1680547481723,4.362,1829.1,1828.9,3.2078]
[1680547482728,4.362,1829.1,1828.7,3.2078]
[1680547482927,4.362,1829.1,1828.9,3.2078]
[1680547483328,0.54608269,1829.3,1828.9,3.2078]
[1680547483526,10.38629221,1829.4,1828.9,3.2078]
[1680547484232,10.9403729,1829.4,1828.9,3.2078]
[1680547486238,9.909,1829.3,1829.0,0.84353195]
[1680547486424,9.909,1829.3,1828.9,3.2078]
[1680547486835,9.909,1829.3,1829.0,0.80386267]
[1680547487240,9.909,1829.3,1828.9,3.2078]
[1680547487436,9.909,1829.3,1829.0,0.80390117]
[1680547487729,9.909,1829.3,1828.9,3.2078]
[1680547488138,9.909,1829.3,1829.0,0.80392902]
[1680547488529,9.909,1829.3,1828.9,3.2078]
[1680547488735,9.909,1829.3,1829.0,0.80396531]
[1680547488932,9.909,1829.3,1828.9,3.2078]
[1680547489332,9.909,1829.3,1829.0,0.80399161]
[1680547489742,9.909,1829.3,1828.9,3.2078]
[1680547489935,9.909,1829.3,1829.0,0.80402936]
[1680547490140,4.362,1829.1,1829.0,0.80402936]
[1680547490339,4.362,1829.1,1828.9,3.2078]
[1680547492940,5.532,1829.3,1828.9,3.2078]
[1680547492941,4.362,1829.2,1828.9,3.2078]
[1680547493137,4.362,1829.2,1829.0,0.8042392]
[1680547493636,4.362,1829.2,1828.9,3.2078]
[1680547494035,4.362,1829.2,1829.0,0.80434229]
[1680547494732,10.0,1830.0,1829.0,0.80434229]
[1680547494733,4.377,1829.7,1829.0,0.80434229]
[1680547494934,5.92270943,1829.9,1829.3,3.2078]
[1680547495343,4.92270943,1829.9,1829.3,3.2078]
[1680547495646,6.42199767,1829.8,1829.3,3.2078]
[1680547495830,1.65129767,1829.8,1829.3,3.2078]
[1680547496141,10.45470943,1829.9,1829.3,3.2078]
[1680547496341,3.2078,1829.8,1829.3,3.2078]
[1680547496744,11.01219954,1829.9,1829.3,3.2078]
[1680547496942,12.66121561,1829.9,1829.3,3.2078]
[1680547497238,8.28621561,1829.9,1829.3,3.2078]
[1680547497445,11.01219954,1829.9,1829.5,3.2078]
[1680547497638,5.48019954,1829.9,1829.5,3.2078]
[1680547497944,3.2078,1829.8,1829.3,3.2078]
[1680547499437,0.54770943,1829.9,1829.5,3.2078]
[1680547499634,18.1168,1830.0,1829.5,3.2078]
[1680547500541,19.77154954,1830.0,1829.5,3.2078]
[1680547500946,19.77154954,1830.0,1829.3,3.2078]
[1680547500947,4.377,1829.6,1829.3,3.2078]
[1680547501136,4.362,1829.8,1829.3,3.2078]
[1680547502443,4.362,1829.8,1829.5,3.2078]
[1680547502850,10.40899357,1830.0,1829.5,3.2078]
[1680547503049,7.20119357,1830.0,1829.7,3.2078]
[1680547503347,5.54644403,1830.0,1829.9,3.2078]
[1680547503749,7.5848,1830.6,1829.7,3.2078]
[1680547503949,0.02008955,1830.5,1830.0,1.0]
[1680547504448,5.1037,1830.8,1830.3,3.2078]
[1680547504642,0.98386736,1830.7,1830.3,3.2078]
[1680547504845,4.7204,1830.9,1830.3,3.2078]
[1680547505049,1.00393557,1830.8,1830.3,3.2078]
[1680547505248,0.15,1831.0,1830.6,7.5678]
[1680547505441,0.15,1831.0,1830.8,3.2078]
[1680547505643,3.2078,1831.5,1830.8,3.2078]
[1680547505843,0.55159926,1831.7,1831.1,4.377]
[1680547506049,0.55159926,1831.7,1831.5,3.2078]
[1680547506356,0.1,1832.0,1831.6,4.361]
[1680547506654,0.1,1832.0,1831.8,3.2078]
[1680547506947,5.97441017,1832.6,1831.8,3.2078]
[1680547507151,5.97441017,1832.6,1831.6,4.377]
[1680547507152,4.375,1831.9,1830.9,2.12499801]
[1680547507338,3.2078,1831.9,1831.3,3.2078]
[1680547507544,4.377,1832.2,1831.3,3.2078]
[1680547507745,0.02007344,1832.1,1831.5,3.2078]
[1680547507948,3.22787344,1832.1,1831.5,3.2078]
[1680547508247,9.375,1832.4,1831.5,3.2078]
[1680547508248,0.02007344,1832.0,1831.5,3.2078]
[1680547508550,0.02007344,1831.9,1831.5,3.2078]
[1680547508751,0.02007344,1831.9,1831.5,7.5678]
[1680547508752,3.28364561,1831.9,1831.5,7.5678]
[1680547509049,0.55837452,1832.2,1831.6,1.0]
[1680547509252,0.02007197,1832.1,1831.7,3.2078]
[1680547509447,4.377,1832.4,1831.7,3.2078]
[1680547509448,3.2078,1832.3,1831.7,3.2078]
[1680547509647,0.02007174,1832.2,1831.7,3.2078]
[1680547509849,5.81694905,1832.7,1831.7,3.2078]
[1680547509850,9.78821017,1832.6,1831.9,3.2078]
[1680547510051,3.2078,1832.4,1831.7,3.2078]
[1680547510352,0.02007019,1832.3,1831.7,3.2078]
[1680547510653,13.7398,1832.2,1831.7,3.2078]
[1680547510851,13.7398,1832.2,1831.5,3.2078]
[1680547510852,0.02007019,1832.1,1831.5,3.2078]
[1680547511159,3.25176077,1832.1,1831.5,3.2078]
[1680547511453,6.58041017,1832.6,1831.6,1.0]
[1680547511454,14.16521017,1832.6,1831.6,1.0]
[1680547511658,0.02007137,1832.5,1831.6,3.2078]
[1680547511860,8.2078,1832.4,1831.6,3.2078]
[1680547512157,3.2078,1832.2,1831.6,3.2078]
[1680547512358,0.02007137,1832.1,1831.6,3.2078]
[1680547512754,3.2078,1832.5,1831.9,4.377]
[1680547512952,4.377,1832.9,1831.9,4.377]
[1680547512953,8.49004082,1832.7,1831.9,4.377]
[1680547513151,5.0,1832.4,1832.0,3.2078]
[1680547513453,8.83039547,1832.3,1831.5,7.5688]
[1680547513651,3.22786821,1832.2,1831.5,7.5688]
[1680547513859,3.25608435,1832.2,1831.7,4.334]
[1680547514058,3.27342777,1832.1,1831.7,3.2078]
[1680547514356,3.2078,1832.2,1831.7,3.2078]
[1680547514654,3.2078,1832.2,1831.8,1.0]
[1680547514954,3.23422164,1832.1,1831.8,1.0]
[1680547515154,3.23422164,1832.1,1831.7,7.5688]
[1680547515757,0.53734082,1832.7,1831.9,7.5848]
[1680547516053,4.8481,1832.8,1832.3,3.2078]
[1680547516255,7.9073,1832.9,1832.3,3.2078]
[1680547516454,4.6995,1832.9,1832.5,3.2078]
[1680547516651,0.68568928,1833.0,1832.5,3.2078]
[1680547516852,0.02006418,1832.9,1832.5,3.2078]
[1680547517360,0.02006418,1832.9,1832.3,4.2078]
[1680547517752,0.02006418,1832.9,1832.4,4.377]
[1680547517947,0.68568928,1833.0,1832.7,3.2078]
[1680547518154,4.67,1833.5,1832.9,7.5688]
[1680547518350,0.1,1834.0,1833.3,4.334]
[1680547518557,0.02005737,1833.7,1833.2,3.2078]
[1680547518752,0.02005737,1833.6,1833.4,3.2078]
[1680547519057,0.02005737,1833.5,1833.0,3.2078]
[1680547519260,3.3071366,1833.5,1833.0,3.2078]
[1680547519459,0.02005737,1833.4,1833.0,3.2078]
[1680547519659,9.377,1833.2,1832.8,2.98670857]
[1680547519860,7.60485737,1833.1,1832.4,3.2078]
[1680547520060,0.02005737,1833.0,1832.4,3.2078]
[1680547520257,3.33148038,1833.0,1832.6,3.2078]
[1680547520560,5.375,1833.3,1832.6,3.2078]
[1680547520862,3.22786268,1833.2,1832.6,3.2078]
[1680547521062,3.2078,1833.9,1833.1,4.377]
[1680547521256,0.02005618,1833.8,1833.5,3.2078]
[1680547521453,0.02005618,1833.7,1833.5,3.2078]
[1680547521763,0.6376664,1834.0,1833.5,3.2078]
[1680547521961,0.02005496,1833.9,1833.5,3.2078]
[1680547522354,0.02005496,1833.9,1833.7,3.2078]
[1680547522559,0.02005496,1833.9,1833.4,3.2078]
[1680547522758,0.02005496,1833.9,1833.6,3.2078]
[1680547523358,0.02005496,1833.9,1833.4,7.5848]
[1680547523557,0.1,1834.0,1833.8,4.377]
[1680547523763,3.2078,1834.7,1833.9,3.2078]
[1680547524057,0.02004892,1834.6,1833.8,4.377]
[1680547524260,7.62635198,1834.6,1833.7,3.2078]
[1680547524562,3.293421,1834.5,1833.8,1.0]
[1680547524762,0.02004892,1834.4,1833.9,3.2078]
[1680547525062,6.55256357,1834.4,1833.9,3.2078]
[1680547525252,0.02004892,1834.3,1833.7,3.2078]
[1680547525457,3.2611356,1834.3,1833.7,3.2078]
[1680547525652,4.375,1834.5,1833.7,3.2078]
[1680547525653,6.44510135,1834.2,1833.7,3.2078]
[1680547525856,4.375,1834.5,1832.5,4.7472]
[1680547525857,4.39704892,1834.1,1833.0,10.92219992]
[1680547526154,0.02004892,1834.0,1833.4,3.2078]
[1680547526357,3.24348494,1834.0,1833.4,3.2078]
[1680547526559,0.02005249,1833.9,1833.6,3.2078]
[1680547526854,8.13568507,1834.5,1833.7,5.361]
[1680547526855,0.55088507,1834.5,1833.7,5.361]
[1680547527061,0.02005046,1834.4,1833.8,3.2078]
[1680547527255,8.0335,1834.8,1834.0,3.2078]
[1680547527256,0.02005046,1834.3,1834.0,3.2078]
[1680547527562,4.8257,1834.8,1834.1,4.377]
[1680547527765,7.60484803,1834.7,1834.0,3.2078]
[1680547528064,3.29729816,1834.6,1834.0,7.5848]
[1680547528257,0.02004803,1834.5,1834.2,3.2078]
[1680547528451,0.02004803,1834.5,1834.1,3.2078]
[1680547528659,0.02004803,1834.4,1834.1,3.2078]
[1680547528962,4.87668106,1834.9,1834.3,3.2078]
[1680547529263,4.39704768,1834.8,1834.1,3.2078]
[1680547529466,3.2078,1834.4,1833.9,3.2078]
[1680547529766,0.02004768,1834.3,1833.9,3.2078]
[1680547530261,3.2078,1834.4,1833.9,3.2078]
[1680547530262,3.2078,1834.7,1833.9,3.2078]
[1680547530467,0.0200485,1834.6,1833.9,3.2078]
[1680547530963,3.2078,1834.3,1833.7,3.2078]
[1680547531267,3.26805299,1834.2,1833.7,3.2078]
[1680547531451,0.0200485,1834.1,1833.7,3.2078]
[1680547531650,3.2078,1834.3,1833.7,3.2078]
[1680547531856,4.7179,1834.6,1833.7,3.2078]
[1680547532068,0.02004868,1834.5,1833.8,5.377]
[1680547532267,0.02004868,1834.5,1833.8,4.377]
[1680547532457,3.22784868,1834.5,1833.9,3.2078]
[1680547532662,4.375,1834.8,1833.9,3.2078]
[1680547532860,0.02004692,1834.7,1834.1,3.2078]
[1680547533364,0.02004692,1834.7,1834.2,2.17324998]
[1680547533567,5.55204692,1834.7,1834.3,3.2078]
[1680547533769,0.02004692,1834.6,1834.2,5.38104998]
[1680547533958,3.27673844,1834.6,1834.2,2.17324998]
[1680547534265,3.24992529,1834.5,1833.9,3.2078]
[1680547534462,0.02004692,1834.4,1833.9,3.2078]
[1680547534665,3.28603813,1834.4,1833.9,3.2078]
[1680547534860,3.27583981,1834.6,1833.5,3.2078]
[1680547534861,9.909,1834.2,1833.5,3.2078]
[1680547535163,3.26056499,1834.1,1833.5,3.2078]
[1680547535365,6.44831807,1834.1,1833.5,3.2078]
[1680547535668,3.2078,1833.9,1833.5,3.2078]
[1680547535869,3.2078,1833.9,1833.3,3.2078]
[1680547536962,3.4200541,1833.8,1833.3,3.2078]
[1680547537157,3.2078,1833.7,1833.3,3.2078]
[1680547537556,3.27606263,1833.6,1833.3,3.2078]
[1680547537771,3.4,1833.8,1833.3,3.2078]
[1680547538660,3.29332839,1833.7,1833.3,3.2078]
[1680547539056,6.6078,1833.8,1833.3,3.2078]
[1680547539258,3.24568798,1833.7,1833.3,3.2078]
[1680547539765,3.2078,1833.6,1833.1,3.2078]
[1680547539966,1.0,1833.5,1833.1,3.2078]
[1680547540167,3.2078,1833.4,1833.2,2.04183926]
[1680547540360,6.48158216,1833.4,1832.9,3.2078]
[1680547540563,3.26305208,1833.3,1832.9,3.2078]
[1680547541066,13.1168,1833.4,1832.9,3.2078]
[1680547541067,4.377,1833.6,1832.9,3.2078]
[1680547541474,3.2078,1833.7,1833.1,3.2078]
[1680547541866,3.4,1833.8,1833.1,3.2078]
[1680547542065,3.4,1833.8,1833.3,3.2078]
[1680547542460,12.5941,1834.0,1833.3,3.2078]
[1680547542669,9.3863,1834.0,1833.3,3.2078]
[1680547542971,40.8,1833.6,1833.1,3.2078]
[1680547543358,40.8,1833.6,1833.3,3.2078]
[1680547543562,40.8,1833.6,1833.1,3.2078]
[1680547544275,40.8,1833.6,1833.2,2.0176682]
[1680547544866,40.8,1833.6,1833.3,3.2078]
[1680547545575,40.8,1833.6,1833.4,2.01775523]
[1680547547073,40.8,1833.6,1833.3,3.2078]
[1680547547273,40.8,1833.6,1833.4,2.04224798]
[1680547547467,40.8,1833.6,1833.4,0.04224798]
[1680547547773,40.8,1833.6,1833.1,3.2078]
[1680547548167,40.8,1833.6,1833.2,1.79229258]
[1680547549073,44.0078,1833.6,1833.2,1.79229258]
[1680547549265,4.377,1833.5,1833.2,1.79229258]
[1680547549470,3.2078,1833.3,1833.2,1.79229258]
[1680547549663,48.3848,1833.3,1832.6,3.2078]
[1680547549864,48.47953566,1833.3,1833.2,1.06561976]
[1680547550065,48.3848,1833.3,1832.6,3.2078]
[1680547550265,48.3848,1833.3,1832.7,1.0656472]
[1680547550266,45.177,1833.3,1832.7,1.0656472]
[1680547550475,4.24974456,1833.2,1832.7,1.0656472]
[1680547550676,3.2078,1833.1,1832.7,1.0656472]
[1680547550970,6.4647468,1833.1,1832.6,3.2078]
[1680547551473,3.2078,1833.1,1832.6,3.2078]
[1680547551670,40.8,1833.3,1832.6,3.2078]
[1680547552067,44.0078,1833.3,1832.6,3.2078]
[1680547552275,49.5398,1833.3,1832.6,3.2078]
[1680547552477,44.0078,1833.3,1832.6,3.2078]
[1680547552679,44.0078,1833.3,1832.8,3.2078]
[1680547552974,40.8,1833.3,1833.0,3.2078]
[1680547553563,40.8,1833.3,1833.2,3.2078]
[1680547553763,40.8,1833.3,1833.0,4.2078]
[1680547553974,40.8,1833.3,1833.2,3.2078]
[1680547554377,40.8,1833.3,1833.0,3.2078]
[1680547555473,1.0,1833.2,1833.0,3.2078]
[1680547555665,40.8,1833.3,1832.8,3.2078]
[1680547556269,40.8,1833.3,1833.0,3.2078]
[1680547556673,40.8,1833.3,1832.8,3.2078]
[1680547557081,40.8,1833.3,1833.2,7.5848]
[1680547557387,18.9683,1833.9,1833.2,15.11033639]
[1680547557388,13.924,1833.9,1833.2,15.11033639]
[1680547557580,14.47741363,1834.2,1833.6,3.2078]
[1680547557787,7.5848,1833.7,1833.3,36.5]
[1680547557975,3.2078,1833.5,1833.2,0.99353639]
[1680547558282,3.2078,1833.5,1832.9,3.2078]
[1680547558283,3.2078,1833.3,1832.9,3.2078]
[1680547558772,3.2078,1833.3,1833.0,0.72430957]
[1680547559174,1.0,1833.2,1832.6,3.2078]
[1680547559485,13.1168,1833.3,1832.6,3.2078]
[1680547559671,7.5848,1833.3,1832.7,0.7246776]
[1680547560475,3.28273646,1833.2,1832.7,0.7246776]
[1680547560668,3.2078,1833.1,1832.7,0.7246776]
[1680547560879,3.2078,1833.1,1832.6,3.2078]
[1680547562280,11.45553229,1833.3,1832.6,3.2078]
[1680547562480,0.98246203,1833.2,1832.6,3.2078]
[1680547562674,9.72226203,1833.2,1832.5,0.08522253]
[1680547562876,8.2078,1833.0,1832.5,0.08522253]
[1680547563284,5.532,1832.8,1832.5,0.08522253]
[1680547563578,48.46776503,1832.7,1832.6,0.4038271]
[1680547563785,48.46776503,1832.7,1832.5,0.08522253]
[1680547563982,44.09076503,1832.7,1832.5,0.08522253]
[1680547564677,3.26494739,1832.6,1832.5,0.08522253]
[1680547565778,45.72813971,1832.7,1832.5,0.08522253]
[1680547565980,40.8,1832.7,1832.5,0.08522253]
[1680547567778,45.177,1832.7,1832.5,0.08522253]
[1680547568689,9.909,1832.7,1832.5,0.08522253]
[1680547568989,40.8,1832.6,1832.5,0.08522253]
[1680547571085,44.0078,1832.6,1832.2,3.2078]
[1680547571287,44.0078,1832.6,1832.3,0.40432205]
[1680547571487,44.0078,1832.6,1832.3,0.00432205]
[1680547571687,40.8,1832.6,1832.3,0.35433585]
[1680547571881,40.8,1832.6,1832.3,5.68833585]
[1680547572086,4.377,1833.3,1832.4,3.2078]
[1680547572287,3.2078,1833.5,1832.8,3.2078]
[1680547572490,41.78236926,1833.4,1832.6,3.2078]
[1680547572691,40.8,1833.4,1832.8,3.2078]
[1680547572895,40.8,1833.4,1832.7,3.2078]
[1680547573191,44.0078,1833.4,1832.7,3.2078]
[1680547573387,44.0078,1833.4,1832.9,3.2078]
[1680547573388,40.8,1833.4,1832.9,3.2078]
[1680547573591,40.8,1833.4,1833.1,3.2078]
[1680547574481,40.8,1833.4,1832.8,3.2078]
[1680547574893,40.8,1833.4,1833.0,3.2078]
[1680547575195,40.8,1833.4,1833.2,3.2078]
[1680547575887,1.0,1833.3,1832.6,3.2078]
[1680547576288,40.8,1833.4,1832.6,3.2078]
[1680547576491,44.0078,1833.4,1832.8,3.2078]
[1680547576686,44.0078,1833.4,1832.9,3.2078]
[1680547576883,44.0078,1833.4,1832.7,3.2078]
[1680547577689,40.8,1833.4,1833.0,4.361]
[1680547577892,40.8,1833.4,1833.1,3.2078]
[1680547578791,40.8,1833.4,1832.8,4.2078]
[1680547579096,40.8,1833.4,1832.9,0.64716782]
[1680547579301,40.8,1833.4,1832.8,3.2078]
[1680547579998,40.8,1833.4,1832.5,9.909]
[1680547579999,10.7221377,1833.3,1832.5,3.2078]
[1680547580199,10.89133567,1833.2,1832.5,3.2078]
[1680547580499,4.375,1833.0,1832.3,0.5427307]
[1680547580688,4.375,1833.0,1832.2,3.2078]
[1680547580890,3.2078,1832.9,1832.2,3.2078]
[1680547581087,3.2078,1832.7,1832.2,3.2078]
[1680547581396,8.7398,1832.5,1832.0,3.2078]
[1680547581801,3.2078,1832.5,1832.0,3.2078]
[1680547582293,8.7398,1832.5,1832.0,3.2078]
[1680547582799,3.2078,1832.3,1832.0,3.2078]
[1680547586000,40.8,1832.2,1832.0,3.2078]
[1680547586997,40.8,1832.2,1831.6,7.54839173]
[1680547586998,40.8,1832.2,1831.8,3.2078]
[1680547587223,0.13834596,1832.1,1831.8,3.2078]
[1680547587697,40.8,1832.2,1831.8,3.2078]
[1680547588597,40.8,1832.2,1831.6,3.2078]
[1680547589700,1.0,1832.1,1831.6,3.2078]
[1680547589899,9.7398,1832.1,1831.6,3.2078]
[1680547590101,3.2078,1831.9,1831.6,3.2078]
[1680547590407,1.0,1831.8,1831.4,3.2078]
[1680547590602,3.2078,1831.9,1831.4,3.2078]
[1680547591703,3.2078,1831.7,1831.2,3.2078]